[Event "British Championship 2024"]
[Site "Hull"]
[Date "2024.07.31"]
[Round "2.7"]
[White "Mirzoeva, Elmira"]
[Black "Royal, Shreyas"]
[Result "0-1"]
[Annotator "TA"]
[ECO "D38"]
[WhiteElo "2260"]
[BlackElo "2483"]
[PlyCount "206"]
[EventDate "2024.07.31"]
[EventCountry "GBR"]
[SourceTitle "playchess.com"]
[Source "ChessBase"]
[SourceQuality "1"]
[TimeControl "40/5400+30:1800+30"]

{[%evp 128,206,-12847,-29941,-12844,-12849,-12845,-12847,-12848,-12850,-12850,-12850,-12849,-12846,-12833,-12835,-196,-12847,-12845,-12833,-196,-12835,-8520,-12626,-12566,-11489,-7593,-9030,-370,-7681,-7633,-7110,0,-6433,-5710,-5185,0,-4375,0,-4363,0,-1827,-196,-29942,-29945,-29936,-12850,-29939,-29943,-29966,-12831,-12847,0,-29963,-9588,-1931,-1819,-1819,-363,-1374,-190,-29974,-29975,-29978,-29976,-29976,-29977,-29977,-29977,-29977,-29978,-29985,-29986,-29990,-29991,-29991,-29992,-29994,-29990,-29997,-29998]} 1. d4 {[%emt 0:00:08]} Nf6 {[%emt 0:00:06]} 2. c4 {[%emt 0:00:38]} e6 {[%emt 0:00:05]} 3. Nf3 {[%emt 0:00:25]} d5 {[%emt 0:00:07]} 4. Nc3 {[%emt 0:00:24]} Nbd7 {[%emt 0:00:23]} 5. cxd5 {[%emt 0:00:36]} exd5 {[%emt 0:00:06]} 6. Bg5 {[%emt 0:00:12]} Bb4 {[%emt 0:00:27]} 7. Nd2 {[%emt 0:00:55]} c6 {[%emt 0:05:53]} 8. e3 {[%emt 0:00:35] D38: Queen's Gambit Declined: Ragozin Defence (4 Nf3 Bb4).} Nf8 $1 {[%emt 0:04:37][%mdl 4] is now more promising than 8...0-0.} 9. Bd3 {[%emt 0:02:40]} Ng6 {[%emt 1:23:16]} 10. O-O O-O {[%emt 0:00:00]} 11. f4 {[%emt 0:19:35]} Re8 $146 {[%emt 0:00:00]} ({Predecessor:} 11... h6 12. Bxf6 Qxf6 13. f5 Qg5 14. Qf3 Nh4 15. Qg3 g6 16. fxg6 Nxg6 17. Qf2 f5 {0-1 Le,Q (2728)-Erigaisi,A (2710) Biel Blitz 56th 2023 (4)}) 12. f5 {[%emt 0:16:59]} Nf8 {[%emt 0:00:00]} 13. Nf3 {[%emt 0:00:28]} h6 {[%emt 0:00:00]} 14. Bf4 {[%emt 0:10:27]} Nh5 {[%emt 0:00:00]} 15. Be5 {[%emt 0:08:56]} Nh7 {[%emt 0:00:00]} 16. a3 {[%emt 0:14:29]} Bf8 {[%emt 0:00:00]} 17. Rc1 {[%emt 0:14:08]} f6 {[%emt 0:00:00]} 18. Bf4 {[%emt 0:00:58]} Nxf4 {[%emt 0:00:00]} 19. exf4 {[%emt 0:00:02]} Bd6 {[%emt 0:00:00]} 20. Qd2 {[%emt 0:01:32]} b6 {[%emt 0:00:00]} 21. Rce1 {[%emt 0:01:10]} Rxe1 {[%emt 0:00:00]} 22. Rxe1 {[%emt 0:00:06]} Nf8 {[%emt 0:00:00]} 23. g4 {[%emt 0:05:05]} Qc7 {[%emt 0:00:00]} 24. Ne2 {[%emt 0:00:14]} Bb7 {[%emt 0:00:00]} 25. g5 {[%emt 0:00:13]} Re8 {[%emt 0:00:00]} 26. Kh1 {[%emt 0:00:20]} Qf7 {[%emt 0:00:00]} 27. Rg1 {[%emt 0:01:28]} Qh5 {[%emt 0:00:00]} 28. Rf1 {[%emt 0:00:31]} hxg5 {[%emt 0:00:00]} 29. fxg5 {[%emt 0:00:10]} fxg5 {[%emt 0:00:00]} 30. Qxg5 {[%emt 0:00:31]} Qxg5 {[%emt 0:00:00]} 31. Nxg5 {[%emt 0:00:01]} c5 {[%emt 0:00:00]} 32. Bb5 {[%emt 0:01:19]} Re7 {[%emt 0:00:00]} 33. f6 {[%emt 0:00:21]} gxf6 {[%emt 0:00:00]} 34. Rxf6 {[%emt 0:00:01]} Bc7 {[%emt 0:00:00]} 35. Ng3 {[%emt 0:01:42]} Bxg3 {[%emt 0:00:00]} 36. hxg3 {[%emt 0:00:01]} cxd4 {[%emt 0:00:00]} 37. Nf3 {[%emt 0:00:52]} d3 {[%emt 0:00:33]} 38. Bxd3 {[%emt 0:00:38]} Re3 {[%emt 0:00:08]} 39. Bf1 {[%emt 0:00:38]} Kg7 {[%emt 0:01:17]} 40. Rf5 {[%emt 0:00:23]} Bc8 {[%emt 0:01:18]} 41. Nd4 {[%emt 0:30:33]} Re1 {[%emt 0:35:21]} 42. Rf2 {[%emt 0:00:00]} Bh3 {[%emt 0:00:00]} 43. Kg1 {[%emt 0:00:00]} Ng6 {[%emt 0:00:00]} 44. Nf3 {[%emt 0:00:00]} Rd1 {[%emt 0:00:00]} 45. Ng5 {[%emt 0:00:00]} Bg4 {[%emt 0:00:00]} 46. Kg2 {[%emt 0:00:00]} d4 {[%emt 0:00:00]} 47. Ne4 {[%emt 0:00:00]} Re1 {[%emt 0:00:00]} 48. Nd2 {[%emt 0:02:14]} Bc8 {[%emt 0:00:00]} 49. Nf3 {[%emt 0:01:14]} Bb7 {[%emt 0:00:00]} 50. Kh2 {[%emt 0:00:53]} Bxf3 {[%emt 0:00:00]} 51. Rxf3 {[%emt 0:00:02]} Ne5 {[%emt 0:00:00]} 52. Rf5 {[%emt 0:00:57]} Ng4+ {[%emt 0:00:00]} 53. Kg1 {[%emt 0:00:36]} Ne3 {[%emt 0:00:00]} 54. Rf3 {[%emt 0:00:11]} d3 {[%emt 0:00:00]} 55. Kf2 {[%emt 0:00:20]} d2 {[%emt 0:00:00]} 56. Rxe3 {[%emt 0:01:01]} Rxe3 {[%emt 0:00:00]} 57. Be2 {[%emt 0:00:02]} Rd3 {[%emt 0:00:00]} 58. Bd1 {[%emt 0:00:03]} Kf6 {[%emt 0:00:00]} 59. Ke2 {[%emt 0:00:18]} Rxg3 {[%emt 0:00:00]} 60. Kxd2 {[%emt 0:00:02]} Ke5 {[%emt 0:00:00]} 61. Bc2 {[%emt 0:00:46]} Kd4 {[%emt 0:00:00]} 62. Bf5 {[%emt 0:00:25]} Rg5 {[%emt 0:00:00]} 63. Bh7 {[%emt 0:00:22]} Kc4 {[%emt 0:00:00]} 64. Bc2 {[%emt 0:00:16]} Rg1 {[%emt 0:00:00]} (64... Rg3 $142 65. Ba4 Rd3+ 66. Kc2 Rg3 67. Kc1 Rg8 68. Bc2 Rg7 69. Kd2 Rd7+ 70. Kc1 Rd5) 65. Ke2 {[%emt 0:01:23]} Kd4 {[%emt 0:02:00]} (65... a5 $142 66. Kd2 b5 67. Ke2 Rc1 68. Kd2 Ra1 69. Bd3+ Kb3 70. Bxb5 a4 (70... Kxb2 $2 71. a4 $19) 71. Bd7 Rb1 (71... Kxb2 72. Bxa4 Rf1 73. Bb5 $11) 72. Bg4 Kxb2 (72... Rxb2+ $2 73. Kc1 $19) 73. Bh5 Ra1 (73... Kxa3 74. Bg4 $19) 74. Be8 Rxa3 (74... Kxa3 $2 75. Kc2 $19) 75. Ke2 Ra1 76. Bd7 a3 77. Bh3 Rc1 78. Be6 Rc3 (78... a2 79. Bxa2 Kxa2 80. Kd3 Kb2 81. Ke4 Re1+ 82. Kf5 Kb3 83. Kg6 Rf1 84. Kg7 Kc3 85. Kg8 Kd3 86. Kg7 Ke4 87. Kg6 Ke5 88. Kg7 Rf5 89. Kg6 Ke6 90. Kg7 Rf6 91. Kg8 Rg6+ 92. Kh8 Ke7 93. Kh7 Kf7 94. Kh8 Rh6#) 79. Bg8 a2 80. Bxa2 Kxa2 81. Kd1 Kb1 82. Kd2 Kb2 83. Ke2 Kc1 84. Kf1 Kd2 85. Kf2 Rd3 86. Kf1 Ke3 87. Kg2 Ke2 88. Kh1 Rg3 89. Kh2 Kf2 90. Kh1 Rh3#) 66. Kd2 $19 {[%emt 0:00:16]} Rg2+ {[%emt 0:00:09]} 67. Kc1 {[%emt 0:00:10]} Ke3 {[%emt 0:00:03]} 68. Bf5 {[%emt 0:01:03]} Rg5 {[%emt 0:00:04]} 69. Bh7 {[%emt 0:00:19]} Rc5+ {[%emt 0:00:27]} 70. Kd1 {[%emt 0:00:19]} Rd5+ {[%emt 0:00:30]} 71. Kc1 {[%emt 0:00:07]} Ke2 $2 {[%emt 0:00:04]} (71... a5 72. Kc2 Rc5+ 73. Kb1 Rg5) 72. Bg6 $2 {[%emt 0:01:02]} (72. b4) 72... Rc5+ {[%emt 0:00:03]} 73. Bc2 {[%emt 0:00:38]} Ke3 $2 {[%emt 0:00:31]} (73... a5 74. a4 Ke3) 74. Kd1 $2 {[%emt 0:00:27]} (74. b4 Rg5 75. Kb2) 74... Rg5 {[%emt 0:00:08]} 75. Bh7 {[%emt 0:00:05]} Rg2 {[%emt 0:01:12]} 76. Kc1 {[%emt 0:00:10]} Ke2 {[%emt 0:00:05]} 77. Be4 {[%emt 0:00:29]} Rg1+ {[%emt 0:00:25]} 78. Kc2 {[%emt 0:00:01]} Ke3 {[%emt 0:00:04]} 79. Bf5 {[%emt 0:00:18]} Rg2+ {[%emt 0:04:27]} 80. Kc1 $1 {[%emt 0:00:09]} Rd2 {[%emt 0:00:04]} 81. Bg6 {[%emt 0:02:20]} Rd5 {[%emt 0:00:13]} 82. Bh7 $1 {[%emt 0:00:14]} Ke2 {[%emt 0:00:07]} 83. Bg6 $1 {[%emt 0:00:25]} Rc5+ {[%emt 0:00:04]} (83... Rg5 $142 84. Be4 Rg4) 84. Bc2 $19 {[%emt 0:00:29]} Rc8 $2 {[%emt 0:00:12]} (84... a5 85. a4 Ke3) 85. Kb1 $2 {[%emt 0:00:08]} (85. b4 $19) 85... Kd2 {[%emt 0:00:04]} 86. Bf5 {[%emt 0:00:24]} Rc1+ {[%emt 0:00:03]} 87. Ka2 {[%emt 0:00:02]} Rf1 {[%emt 0:00:06]} 88. Bh3 {[%emt 0:01:24]} Rh1 {[%emt 0:00:19]} (88... Rf3 $142 89. Be6 Kc1 90. b3 Rf2+ 91. Ka1 Kc2 92. Bg8 Kc3 93. Be6 Rb2 94. b4 Re2 95. Bg4 Re4 (95... Re1+ $2 96. Ka2 $19) 96. Bf5 Re5 (96... Re1+ 97. Ka2 $19) 97. Bg6 Kb3 98. Bf7+ Kxa3 99. Kb1 b5 (99... Kxb4 $2 100. Kc2 $19) 100. Kc2 Kxb4 101. Bg6 Ka3 102. Kd3 b4 103. Bh7 b3 104. Kd4 Re7 105. Bg6 Kb4 106. Bf5 a5 107. Kd5 Re1 108. Bg6 a4 109. Bh7 a3 110. Be4 a2 111. Ke5 Rxe4+ (111... a1=B+ 112. Kf5 Rxe4 113. Kxe4 b2 114. Kf4 b1=Q 115. Kf3 Qf5+ 116. Kg2 Bd4 117. Kg3 Kc4 118. Kg2 Qg4+ 119. Kh2 Bf2 120. Kh1 Qh3#) (111... b2 {leads to mate.} 112. Kf6 a1=Q 113. Kf7 Rxe4 114. Kg6 b1=Q 115. Kf5 Qf1+ 116. Kxe4 Kc5 117. Ke3 Qae1#) 112. Kxe4 b2 (112... a1=B 113. Kf4 b2 114. Kg4 b1=Q 115. Kf4 Qd3 116. Kg4 Be5 117. Kg5 Qe4 118. Kh5 Qf5+ 119. Kh4 Qg6 120. Kh3 Qg3#) 113. Kf4 a1=Q (113... b1=R 114. Ke4 a1=Q 115. Kf5 Rf1+ 116. Ke6 Rf6+ 117. Ke7 Qd4 118. Ke8 Qa7 119. Kd8 Rf8#) 114. Kf3 b1=Q (114... b1=B 115. Kg2 Qe5 116. Kf3 Bd3 117. Kg4 Qe3 118. Kh4 Qg1 119. Kh5 Qg3 120. Kh6 Qg6#) 115. Kg4 Qe4+ (115... Qg6+ $2 116. Kf4 Qd4+ 117. Kf3 Qgg4#) 116. Kh5 Qh8+ 117. Kg5 Qhh4#) 89. Bf5 $19 {[%emt 0:00:19]} Rf1 {[%emt 0:01:22]} (89... Kc1 $19 90. b4 Rh2+ 91. Ka1 Rc2) 90. Bh3 $1 {[%emt 0:00:02]} Rg1 {[%emt 0:00:05]} (90... Rf3 $142 91. Be6 Rf6 92. Bg8 Kc1 93. Ka1 Rf2 94. b4 Kc2 95. b5 Kc3 96. a4 Rf4 97. Kb1 Rxa4 98. Bh7 Rb4+ 99. Kc1 Rh4 (99... Rxb5 {is a self mate.} 100. Kd1 Re5 101. Bg6 a5 102. Bh7 a4 103. Bc2 Rd5+ 104. Ke2 Kxc2 105. Kf3 a3 106. Kg4 a2 107. Kf4 a1=Q 108. Ke4 Qd4+ 109. Kf3 Qf6+ 110. Kg4 Rg5+ 111. Kh4 Qh6#) 100. Kd1 Rxh7 101. Ke2 Rh3 (101... Rh5 {gets mated.} 102. Kf3 Rh4 103. Kf2 Re4 104. Kg2 Re3 105. Kf1 Kd2 106. Kf2 Rb3 107. Kg1 Ke2 108. Kg2 Re3 109. Kg1 Kf3 110. Kf1 Kg3 111. Kg1 Re1#) 102. Kf2 Kd2 103. Kg2 Re3 104. Kf2 Rc3 105. Kf1 Ke3 106. Kg2 Ke2 107. Kh1 Kf1 108. Kh2 Re3 109. Kh1 Rh3#) 91. Bf5 $19 {[%emt 0:00:12]} Kc1 {[%emt 0:00:11]} 92. b4 {[%emt 0:00:59]} Rg3 $2 {[%emt 0:00:45]} (92... Rg2+ 93. Ka1 Rb2) 93. Be4 $2 {[%emt 0:00:13]} (93. a4) 93... Kd2 $2 {[%emt 0:00:10]} (93... Rg4 94. Bf5 Rf4) 94. Bf5 $2 {[%emt 0:00:11]} (94. Kb2 $19) 94... Kc3 {[%emt 0:00:05]} 95. Be6 {[%emt 0:00:06]} Rg2+ {[%emt 0:05:07]} 96. Kb1 {[%emt 0:00:31]} Rg5 {[%emt 0:00:03]} 97. Ka2 {[%emt 0:02:44]} Re5 {[%emt 0:00:04]} 98. Bf7 {[%emt 0:00:11]} a5 {[%emt 0:00:05]} 99. bxa5 {[%emt 0:01:16]} Rxa5 {[%emt 0:00:01]} 100. Be8 {[%emt 0:00:26]} b5 {[%emt 0:00:05]} 101. Bf7 {[%emt 0:00:37]} b4 {[%emt 0:00:07]} 102. Be6 {[%emt 0:00:11]} Re5 {[%emt 0:00:37]} 103. Bg4 {[%emt 0:00:52]} b3+ {[%emt 0:00:04]} 0-1

[Event "British Championship 2024"]
[Site "Hull"]
[Date "2024.07.31"]
[Round "2.8"]
[White "Grieve, Harry"]
[Black "Golding, Alex"]
[Result "0-1"]
[Annotator "RC"]
[ECO "C92"]
[WhiteElo "2470"]
[BlackElo "2296"]
[PlyCount "96"]
[EventDate "2024.07.31"]
[EventCountry "GBR"]
[SourceTitle "playchess.com"]
[Source "ChessBase"]
[SourceQuality "1"]
[TimeControl "40/5400+30:1800+30"]

1. e4 {[%emt 0:00:01]} e5 {[%emt 0:00:19]} 2. Nf3 {[%emt 0:00:04]} Nc6 {[%emt 0:00:06]} 3. Bb5 {[%emt 0:00:02]} a6 {[%emt 0:00:14]} 4. Ba4 {[%emt 0:00:02]} Nf6 {[%emt 0:00:21]} 5. O-O {[%emt 0:00:04]} b5 {[%emt 0:00:36]} 6. Bb3 {[%emt 0:00:01]} Be7 {[%emt 0:01:16]} 7. d4 {[%emt 0:00:16]} d6 {[%emt 0:03:35]} 8. c3 {[%emt 0:00:07]} O-O {[%emt 0:01:48]} 9. h3 {[%emt 0:00:03]} Bb7 {[%emt 0:04:34]} 10. Re1 {[%emt 0:00:08]} Nd7 {[%emt 0:01:15]} 11. Nbd2 {[%emt 0:03:25]} Na5 {[%emt 0:03:12]} 12. Bc2 {[%emt 0:00:39]} c5 {[%emt 0:00:49]} 13. d5 {[%emt 0:00:50]} Rc8 {[%emt 0:07:15]} 14. b3 {[%emt 0:03:27]} f5 {[%emt 0:06:00]} 15. exf5 {[%emt 0:11:41]} Bxd5 {[%emt 0:00:38]} 16. Ne4 {[%emt 0:01:18]} Nb6 {[%emt 0:06:58]} 17. Nfg5 {[%emt 0:04:18]} Bxe4 {[%emt 0:04:36]} 18. Nxe4 {[%emt 0:05:40]} d5 {[%emt 0:03:09]} 19. Ng3 {[%emt 0:03:18]} Bf6 {[%emt 0:06:59]} 20. Nh5 {[%emt 0:05:46]} Nc6 {[%emt 0:08:19]} 21. Bd2 {[%emt 0:06:43]} Rf7 {[%emt 0:04:01]} 22. Qe2 {[%emt 0:03:37]} c4 {[%emt 0:02:45]} 23. Rad1 {[%emt 0:03:04]} d4 {[%emt 0:00:42]} 24. Be4 {[%emt 0:02:29]} Qc7 {[%emt 0:05:19]} 25. bxc4 {[%emt 0:04:18]} bxc4 {[%emt 0:00:08]} 26. Rb1 {[%emt 0:03:13]} Ne7 {[%emt 0:02:38]} 27. Qf3 {[%emt 0:04:42]} Na4 {[%emt 0:01:27]} 28. Rb7 {[%emt 0:01:57]} Qd6 {[%emt 0:01:45]} 29. Reb1 {[%emt 0:06:28]} Nc5 {[%emt 0:03:06]} 30. R7b6 {[%emt 0:00:11]} Qd7 {[%emt 0:01:00]} 31. g4 {[%emt 0:03:51]} Nxe4 {[%emt 0:01:37]} 32. Qxe4 {[%emt 0:00:02]} dxc3 {[%emt 0:02:24]} 33. Be3 {[%emt 0:15:56]} Qd3 {[%emt 0:00:46]} 34. Qb7 {[%emt 0:04:44]} c2 {[%emt 0:05:49]} 35. Rc1 {[%emt 0:01:02]} Rd8 {[%emt 0:00:09]} 36. Qc7 {[%emt 0:00:44]} Nd5 {[%emt 0:01:22]} 37. Nxf6+ {[%emt 0:00:10]} Nxf6 {[%emt 0:00:07]} 38. Qxe5 {[%emt 0:01:12]} Nd7 {[%emt 0:00:15]} 39. Qb2 {[%emt 0:03:42]} Nxb6 {[%emt 0:00:07]} 40. Qxb6 {[%emt 0:00:37]} Re8 {[%emt 0:02:08]} 41. Qb2 {[%emt 0:04:27]} Rxe3 {[%emt 0:04:13]} 42. fxe3 {[%emt 0:00:11]} Qxe3+ {[%emt 0:00:05]} 43. Kg2 {[%emt 0:06:51]} Qd2+ {[%emt 0:00:30]} 44. Kg3 {[%emt 0:03:27]} Rd7 {[%emt 0:00:22]} 45. Qb8+ {[%emt 0:06:49]} Rd8 {[%emt 0:00:07]} 46. Qb6 {[%emt 0:00:31]} Rd3+ {[%emt 0:00:06]} 47. Kh4 {[%emt 0:00:03]} g5+ {[%emt 0:00:08]} 48. fxg6 {[%emt 0:00:22]} Qh6# {[%emt 0:39:25]} 0-1

[Event "British Championship 2024"]
[Site "Hull"]
[Date "2024.07.31"]
[Round "2.9"]
[White "Lewis, Andrew P"]
[Black "Gasanov, Eldar"]
[Result "0-1"]
[Annotator "TA"]
[ECO "A09"]
[WhiteElo "2272"]
[BlackElo "2469"]
[PlyCount "144"]
[EventDate "2024.07.31"]
[EventCountry "GBR"]
[SourceTitle "playchess.com"]
[Source "ChessBase"]
[SourceQuality "1"]
[TimeControl "40/5400+30:1800+30"]

{[%evp 43,144,0,0,0,0,-13,2,7,4,0,0,0,0,0,0,0,-3,-24,-33,-106,-111,-107,-112,-106,-81,-90,-36,-41,0,-76,-95,-95,-59,-86,0,0,-2,-8,-8,0,0,-8,-8,-16,-16,-16,-9,-9,-9,-9,-9,-9,-9,-14,-22,-14,-6,-20,-14,-21,0,-22,0,-22,-29,-29,-36,-36,-36,-36,0,-77,-36,-36,-36,-36,-36,-77,-36,-36,-36,-51,0,-102,0,-62,-36,-885,-868,-5289,-825,-29974,-847,-921,-893,-896,-812,-685,-568,-29967,-29967,-6075,-409]} 1. Nf3 {[%emt 0:00:12]} d5 {[%emt 0:04:43]} 2. c4 {[%emt 0:00:12]} d4 {[%emt 0:01:43]} 3. b4 {[%emt 0:00:40]} f6 {[%emt 0:02:15]} 4. e3 {[%emt 0:01:19]} e5 {[%emt 0:00:18]} 5. c5 {[%emt 0:03:52]} a5 {[%emt 0:01:11]} 6. Qa4+ {[%emt 0:01:20] A09: Réti Opening: 1 Nf3 d5 2 c4.} Bd7 {[%emt 0:10:00]} 7. b5 {[%emt 0:01:11]} Bxc5 {[%emt 0:02:54]} 8. Bc4 {[%emt 0:02:02]} Nh6 {[%emt 0:06:44]} 9. exd4 {[%emt 0:04:36]} exd4 {[%emt 0:00:29]} 10. O-O {[%emt 0:00:48]} Bg4 $146 {[%emt 0:08:40]} ({Predecessor:} 10... Nf7 11. Re1+ Be7 12. Ba3 Nd6 13. Bxd6 cxd6 14. Nxd4 Kf8 15. Qb3 g6 16. Qe3 Qe8 17. Qh6# {1-0 Kazakouski,V (2603)-Sathvik,A (2413) Titled Tuesday intern op 21st May Early blitz 2024 (11)}) 11. Ba3 {[%emt 0:20:44]} Qd6 {[%emt 0:07:04]} 12. Bxc5 {[%emt 0:01:12]} Qxc5 {[%emt 0:00:15]} 13. Nxd4 {[%emt 0:00:59]} Nd7 {[%emt 0:02:15]} 14. Re1+ {[%emt 0:05:25]} Kf8 {[%emt 0:06:57]} 15. Ne6+ {[%emt 0:09:16]} Bxe6 {[%emt 0:00:16]} 16. Bxe6 {[%emt 0:00:16]} Qd6 {[%emt 0:02:57]} 17. Bxd7 {[%emt 0:15:30]} Qxd7 {[%emt 0:00:25]} 18. Nc3 {[%emt 0:00:12]} Nf5 {[%emt 0:03:29]} 19. Qe4 {[%emt 0:05:57]} Nd6 {[%emt 0:01:44]} 20. Qd5 {[%emt 0:02:52]} Re8 {[%emt 0:18:52]} 21. b6 {[%emt 0:06:46]} cxb6 {[%emt 0:01:24]} 22. Nb5 {[%emt 0:09:49]} Qxb5 {[%emt 0:01:47]} (22... Rxe1+ $2 23. Rxe1 Qxb5 24. Qxd6+ Kf7 25. Re7+ Kg6 26. h4 $18 (26. Rxb7 $2 Qb1#) (26. Qg3+ Qg5 $18)) 23. Qxd6+ {[%emt 0:00:07]} Kf7 {[%emt 0:00:29]} 24. Reb1 {[%emt 0:00:38]} Qe5 {[%emt 0:06:13]} (24... Qc6 {simplifies} 25. Qxc6 bxc6 26. Rxb6 Re2) 25. Qxb6 {[%emt 0:00:45]} Re7 {[%emt 0:00:08]} 26. d4 {[%emt 0:02:33]} Qd5 {[%emt 0:00:32]} 27. Rb5 {[%emt 0:03:16]} Qxa2 {[%emt 0:02:31]} 28. Rbb1 {[%emt 0:01:13]} (28. Qxa5 Ra8 (28... Qxa5 29. Rbxa5 Rc8 30. g3 $11) 29. Qxa2+ Rxa2) 28... Rhe8 {[%emt 0:00:20]} 29. h3 {[%emt 0:00:30]} (29. Rxa2 $2 Re1+ 30. Rxe1 Rxe1#) (29. h4 $5 Qd2 30. Rf1 $11) 29... Qd2 {[%emt 0:00:48]} 30. Qb3+ {[%emt 0:00:41]} (30. Rb2 {is interesting.} Qf4 31. g3 Qf3 32. Qxa5 Re2 33. Rxe2 Rxe2 34. Rf1) 30... Kf8 {[%emt 0:00:22]} 31. d5 {[%emt 0:00:20]} (31. Qa3 $15) 31... Re1+ $17 {[%emt 0:07:17]} 32. Rxe1 {[%emt 0:00:45]} Rxe1+ {[%emt 0:00:01]} 33. Rxe1 {[%emt 0:00:08]} Qxe1+ {[%emt 0:00:05]} 34. Kh2 {[%emt 0:00:14]} Qe5+ {[%emt 0:00:21]} (34... Qxf2 $6 35. Qa3+ Ke8 36. Qa4+ Ke7 37. Qxa5 $11) (34... Qb4 $17 35. Qg3 Qe7 36. Qb8+ Kf7) 35. g3 $15 {[%emt 0:00:50]} Qc7 {[%emt 0:00:36]} (35... b6 $5) 36. d6 {[%emt 0:00:48]} (36. Qa3+ $11 Ke8 37. Qe3+ Qe7 38. Qa7) 36... Qxd6 $17 {[%emt 0:00:29]} 37. Qxb7 {[%emt 0:00:05]} Qc5 {[%emt 0:00:57]} 38. Kg2 {[%emt 0:00:50]} h5 {[%emt 0:01:00]} (38... h6 $17) 39. h4 $11 {[%emt 0:00:22]} Qf5 {[%emt 0:00:49]} 40. Kg1 {[%emt 0:00:40]} Qe5 {[%emt 0:00:28]} 41. Qc8+ {[%emt 0:04:37]} Kf7 {[%emt 0:01:08]} 42. Qd7+ {[%emt 0:00:25]} Kg6 {[%emt 0:00:35]} 43. Qd3+ {[%emt 0:00:52]} Qf5 {[%emt 0:01:02]} 44. Qe2 {[%emt 0:02:55]} Kh7 {[%emt 0:01:06]} 45. Qe8 {[%emt 0:00:45]} Qd5 {[%emt 0:06:49]} 46. Qa4 {[%emt 0:02:10]} Kh6 {[%emt 0:02:36]} 47. Qf4+ {[%emt 0:03:02]} Kg6 {[%emt 0:00:09]} 48. Qa4 {[%emt 0:00:33]} Kf7 {[%emt 0:00:25]} 49. Qc2 {[%emt 0:01:04]} Qb5 {[%emt 0:02:54]} 50. Qc7+ $1 {[%emt 0:01:06]} Kg6 {[%emt 0:00:18]} 51. Qc2+ $1 {[%emt 0:00:54]} Qf5 {[%emt 0:00:18]} 52. Qa4 {[%emt 0:00:42]} Kh7 {[%emt 0:00:41]} 53. Qe8 {[%emt 0:01:15]} Qe5 {[%emt 0:01:54]} 54. Qc6 {[%emt 0:02:49]} Qe2 {[%emt 0:04:23]} 55. Qa4 {[%emt 0:01:37]} Qe1+ {[%emt 0:01:57]} 56. Kg2 {[%emt 0:00:07]} f5 {[%emt 0:00:43]} 57. Qa2 {[%emt 0:07:15]} (57. Qb5 $1 $11) 57... Qe4+ {[%emt 0:00:52]} 58. f3 {[%emt 0:00:14]} Qe5 {[%emt 0:01:56]} 59. Qc4 {[%emt 0:01:00]} Qb2+ {[%emt 0:03:46]} 60. Kg1 {[%emt 0:00:44]} Qa1+ {[%emt 0:00:49]} 61. Kg2 {[%emt 0:00:27]} Qe5 {[%emt 0:01:57]} 62. Kf2 {[%emt 0:00:24]} Qb2+ {[%emt 0:00:42]} (62... Qb8 $15 63. Kg2 Qe5) 63. Kg1 $1 $17 {[%emt 0:00:09]} Qa1+ {[%emt 0:00:54]} 64. Kg2 {[%emt 0:00:14]} a4 {[%emt 0:00:21]} 65. Qf7 $2 {[%emt 0:01:02][%mdl 8192]} (65. Qb5 $15) 65... Qe5 $19 {[%emt 0:00:47]} 66. Qxh5+ {[%emt 0:03:53]} Kg8 {[%emt 0:00:07]} 67. Qg5 {[%emt 0:00:55]} Qe2+ {[%emt 0:03:33]} (67... a3 $142 68. Qd8+ Kh7 69. Qg5 a2 70. Qc1 a1=Q (70... a1=B $2 71. Kh3 $19) 71. Qxa1 Qxa1 72. Kf2 f4 73. gxf4 Qd4+ 74. Kf1 Kg6 (74... Qxf4 75. Kg2 Qxh4 76. Kf1 Kg6 77. f4 Qh2 78. Ke1 Kf5 79. Kd1 Qb2 80. Ke1 Kxf4 81. Kf1 Kf3 82. Kg1 Qg2#) 75. Ke2 Kf5 (75... Qxf4 76. Kd3 Qxh4 77. Kc3 Qa4 78. Kd2 Kf5 79. Ke3 Qd7 80. f4 Qd1 81. Kf2 Kxf4 82. Kg2 Qd2+ 83. Kg1 Kf3 84. Kh1 Qg2#) 76. h5 Kxf4 (76... Qxf4 77. Kd3 Qb4 78. Ke3 Qc5+ 79. Kd2 Kf4 80. Kd3 Kxf3 81. h6 gxh6 82. Kd2 Qc4 83. Kd1 Ke3 84. Ke1 Qe2#) 77. h6 gxh6 78. Kf1 Kxf3 79. Ke1 Qd8 80. Kf1 Qd1#) 68. Kg1 $19 {[%emt 0:00:25]} Qxf3 {[%emt 0:00:10]} 69. h5 {[%emt 0:01:26]} Qg4 {[%emt 0:00:32]} 70. Qd8+ {[%emt 0:00:45]} Kh7 {[%emt 0:00:09]} 71. h6 {[%emt 0:01:26]} Qxg3+ {[%emt 0:00:21]} ({Worse is} 71... gxh6 72. Qd7+ Kg8 73. Qe8+ Kh7 74. Qf7+ Kh8 75. Qf8+ Qg8 76. Qxh6+ Qh7 77. Qf8+ Qg8 78. Qf6+ Qg7 79. Qh4+ Kg8 80. Qd8+ Kh7 81. Qh4+ Kg8 82. Qd8+ Kh7 83. Qh4+ Kg8 $11) 72. Kh1 {[%emt 0:00:41]} Qh3+ {[%emt 0:00:32]} ({Weaker is} 72... Kxh6 73. Qh8+ Kg6 (73... Kg5 74. Qxg7+ Kf4 75. Qd4+ Kf3 76. Qe3+ Kg4 77. Qg5+ Kf3 78. Qxf5+ Qf4 79. Qd3+ Qe3 80. Qf5+ Qf4 81. Qd3+ Kf2 82. Qf1+ Kg3 83. Qe1+ Kg4 84. Qg1+ Kf5 85. Qc5+ Kg4 86. Qg1+ Kh5 87. Qc5+ Qg5 88. Qc2 $11) 74. Qxg7+ Kxg7 $11) 0-1